[Event "Bijnor Open 2024"]
[Site "Bijnor"]
[Date "2024.03.20"]
[Round "8.2"]
[White "Srihari L R"]
[Black "Singh, Arvinder Preet"]
[Result "1-0"]
[ECO "A88"]
[WhiteElo "2490"]
[BlackElo "2030"]
[Annotator "TA"]
[PlyCount "144"]
[EventDate "2024.03.17"]
[EventCountry "IND"]
[SourceTitle "playchess.com"]
[Source "ChessBase"]
[SourceQuality "1"]
[TimeControl "5400+30"]

{[%evp 21,144,12,29,25,17,25,23,0,31,20,29,29,73,74,76,77,114,37,50,58,57,41,48,43,43,29,35,22,28,28,23,27,43,33,37,6,10,0,0,0,0,0,0,0,0,9,8,0,33,0,39,31,28,8,173,172,173,173,225,181,202,189,195,184,262,210,218,212,295,295,309,307,312,254,320,314,395,392,388,335,297,0,355,385,339,310,380,383,385,373,320,308,1107,1094,588,313,1571,2065,1861,1759,2099,683,1803,584,825,584,29964,29965,29966,29966,29966,29968,29966,29967,29968,29970,29970,29971,29981,29982,29982,29983,29986,29982,29982]} 1. d4 {[%emt 0:00:20]} f5 {[%emt 0:00:21]} 2. Nf3 {[%emt 0:01:08]} Nf6 {[%emt 0:00:11]} 3. c4 {[%emt 0:00:06]} g6 {[%emt 0:00:06]} 4. g3 {[%emt 0:00:06]} Bg7 {[%emt 0:00:07]} 5. Bg2 {[%emt 0:00:04]} O-O {[%emt 0:00:10]} 6. O-O {[%emt 0:00:05]} d6 {[%emt 0:00:03]} 7. Nc3 {[%emt 0:00:05]} c6 {[%emt 0:00:06]} 8. d5 {[%emt 0:00:06]} e5 {[%emt 0:00:19]} 9. dxe6 {[%emt 0:00:05]} Bxe6 {[%emt 0:00:04]} 10. b3 {[%emt 0:00:06]} Na6 {[%emt 0:05:49]} 11. Ng5 {[%emt 0:01:16]} Qe7 {[%emt 0:04:30]} 12. Nxe6 {[%emt 0:01:23]} Qxe6 {[%emt 0:00:02]} 13. Bb2 {[%emt 0:00:08]} Rad8 {[%emt 0:00:28]} 14. e3 {[%emt 0:01:26] White has an edge.} Rfe8 {[%emt 0:02:00]} 15. Qc2 {[%emt 0:01:46]} Nb4 {[%emt 0:12:09]} 16. Qd2 {[%emt 0:05:17]} d5 {[%emt 0:03:59] [#]} 17. Nxd5 {[%emt 0:05:31]} Nbxd5 {[%emt 0:03:37]} 18. cxd5 {[%emt 0:00:15]} cxd5 {[%emt 0:27:04]} 19. Qd3 {[%emt 0:09:06]} (19. Rad1 $1 $16) 19... Rd7 {[%emt 0:03:34]} 20. Rac1 {[%emt 0:05:12][%cal Ba1c1,Bc1c2,Bc2c6][%mdl 32]} Red8 {[%emt 0:01:49]} 21. Rc2 {[%emt 0:00:46]} Qe7 {[%emt 0:05:37]} 22. Bd4 {[%emt 0:01:06] This pair of bishops is nice.} b6 {[%emt 0:00:39] Prevents Bc5} 23. Rfc1 {[%emt 0:02:53]} Ne4 {[%emt 0:00:35]} 24. Rc6 {[%emt 0:01:37]} Bxd4 {[%emt 0:01:14]} 25. Qxd4 {[%emt 0:00:16]} Qg7 {[%emt 0:00:07]} 26. Rd1 {[%emt 0:00:42][%cal Bc1d1,Bd1d4,Bd4h4][%mdl 32]} Qxd4 {[%emt 0:00:11]} 27. Rxd4 {[%emt 0:00:08]} Kf7 {[%emt 0:00:16]} 28. h4 {[%emt 0:01:42]} Nc5 {[%emt 0:04:57]} 29. h5 {[%emt 0:02:22]} Ne6 {[%emt 0:00:03]} 30. hxg6+ {[%emt 0:00:18]} hxg6 {[%emt 0:00:02]} 31. Rh4 {[%emt 0:01:07]} Kf6 {[%emt 0:02:23]} 32. Ra4 {[%emt 0:02:32]} Kf7 {[%emt 0:01:50]} 33. Bf1 {[%emt 0:00:11]} Kf6 {[%emt 0:22:38]} 34. Be2 {[%emt 0:03:08]} Ke7 {[%emt 0:00:00]} 35. Rh4 {[%emt 0:00:49]} Rf8 {[%emt 0:00:00]} 36. Rh6 {[%emt 0:07:49]} Rf6 $1 {[%emt 0:00:00]} 37. g4 {[%emt 0:05:50]} Ng7 $2 {[%emt 0:00:00]} (37... f4 $11 {and Black stays safe.}) 38. Rxg6 $18 {[%emt 0:00:12]} Rxc6 {[%emt 0:00:20]} 39. Rxc6 {[%emt 0:00:10][%mdl 4096] Endgame. KRB-KRN} f4 {[%emt 0:01:10]} (39... d4 $142) 40. Bd3 {[%emt 0:05:01]} fxe3 {[%emt 0:00:09]} 41. fxe3 {[%emt 0:00:03]} d4 {[%emt 0:00:20]} 42. Kf2 {[%emt 0:00:08]} Kd8 {[%emt 0:01:46]} (42... dxe3+ {is a better defense.} 43. Kxe3 Ne8) 43. Rf6 {[%emt 0:00:50]} Ke7 {[%emt 0:00:32]} 44. Rh6 {[%emt 0:00:22]} dxe3+ {[%emt 0:00:36]} 45. Kxe3 {[%emt 0:00:12]} Kd8 {[%emt 0:00:21]} 46. Bc4 {[%emt 0:01:18]} Kc7 {[%emt 0:00:33]} 47. Rh8 {[%emt 0:00:42]} Kd6 {[%emt 0:00:40]} 48. Kf4 {[%emt 0:01:01]} Ke7 {[%emt 0:00:15]} 49. Ke5 {[%emt 0:01:57] Rg8 would now be deadly.} Rc7 {[%emt 0:00:24]} 50. Rh7 {[%emt 0:02:39]} Kf8 {[%emt 0:00:33]} 51. Rh8+ {[%emt 0:01:31]} Ke7 {[%emt 0:00:02]} 52. a4 {[%emt 0:01:14]} Rc5+ {[%emt 0:00:50]} 53. Kf4 {[%emt 0:00:04]} Ne6+ {[%emt 0:00:57]} 54. Bxe6 {[%emt 0:02:01]} Kxe6 {[%emt 0:00:01] KR-KR} 55. Rh6+ {[%emt 0:00:07]} Kf7 {[%emt 0:00:31]} 56. Rh7+ {[%emt 0:00:16]} Kg6 $2 {[%emt 0:00:17]} (56... Kf6 57. Rd7 (57. Rxa7 Rd5 $18) 57... Rc3) 57. Rxa7 {[%emt 0:04:30]} Rc3 {[%emt 0:00:03]} 58. Ra6 {[%emt 0:00:09]} Rxb3 {[%emt 0:00:04]} 59. a5 $1 {[%emt 0:00:15]} Rb4+ {[%emt 0:00:08] [#]} 60. Kf3 $1 {[%emt 0:00:34]} Kg5 {[%emt 0:01:01]} 61. Rxb6 {[%emt 0:03:49]} Rf4+ {[%emt 0:00:15]} 62. Ke3 {[%emt 0:00:05]} (62. Ke2 $142 {Threatens to win with Kd3.} Rxg4 63. a6) 62... Rxg4 {[%emt 0:00:16]} 63. a6 {[%emt 0:01:16] White threatens Rb5+ and mate.} Ra4 {[%emt 0:00:02]} 64. Kd3 {[%emt 0:00:05] White mates.} Kf5 {[%emt 0:00:30]} 65. Kc3 {[%emt 0:00:01]} Ke5 {[%emt 0:00:33]} 66. Kb3 {[%emt 0:00:01]} Ra1 {[%emt 0:00:16] [#]} 67. Kc4 $1 {[%emt 0:00:02]} Rc1+ {[%emt 0:02:57]} 68. Kb5 {[%emt 0:00:06]} Kd5 {[%emt 0:00:35]} 69. a7 {[%emt 0:00:07]} Rb1+ {[%emt 0:00:31]} 70. Ka6 {[%emt 0:00:06]} Ra1+ {[%emt 0:00:17]} 71. Kb7 {[%emt 0:00:02]} Kc5 {[%emt 0:00:05]} 72. Rb2 {[%emt 0:00:16]} ({And not} 72. a8=B Rxa8 73. Rh6 Rd8 $11) 72... Kd5 {[%emt 0:01:40] Weighted Error Value: White=0.19 (very precise) /Black=0.23 (precise) .  Loses game:     	---       	Black=2      Mistake:       	White=1     	Black=3      Inaccurate:     	White=2     	Black=7      OK:         	White=15    	Black=18     Best:        	White=2     	---        Strong:       	White=1     	Black=1} 1-0

[Event "Bijnor Open 2024"]
[Site "Bijnor"]
[Date "2024.03.20"]
[Round "8.3"]
[White "Mahindrakar Indrajeet"]
[Black "Vignesh B"]
[Result "1/2-1/2"]
[ECO "B06"]
[WhiteElo "2136"]
[BlackElo "2209"]
[Annotator "RC"]
[PlyCount "140"]
[EventDate "2024.03.17"]
[EventCountry "IND"]
[SourceTitle "playchess.com"]
[Source "ChessBase"]
[SourceQuality "1"]
[TimeControl "5400+30"]

1. d4 {[%emt 0:07:02]} d6 {[%emt 0:00:05]} 2. e4 {[%emt 0:06:41]} g6 {[%emt 0:00:14]} 3. Nc3 {[%emt 0:03:45]} Bg7 {[%emt 0:00:05]} 4. Be3 {[%emt 0:02:13]} a6 {[%emt 0:00:33]} 5. Qd2 {[%emt 0:02:03]} b5 {[%emt 0:00:07]} 6. a3 {[%emt 0:01:48]} Nd7 {[%emt 0:00:06]} 7. f4 {[%emt 0:02:31]} Nb6 {[%emt 0:00:48]} 8. Nf3 {[%emt 0:03:43]} Nf6 {[%emt 0:02:11]} 9. Bd3 {[%emt 0:03:49]} Bb7 {[%emt 0:00:32]} 10. d5 {[%emt 0:04:36]} c6 {[%emt 0:00:47]} 11. dxc6 {[%emt 0:00:46]} Bxc6 {[%emt 0:00:29]} 12. Bd4 {[%emt 0:05:58]} O-O {[%emt 0:03:43]} 13. O-O {[%emt 0:01:51]} Rc8 {[%emt 0:01:34]} 14. Qf2 {[%emt 0:04:02]} Nc4 {[%emt 0:01:07]} 15. Bxc4 {[%emt 0:03:20]} bxc4 {[%emt 0:00:17]} 16. h3 {[%emt 0:04:05]} Qc7 {[%emt 0:08:56]} 17. e5 {[%emt 0:06:40]} Nh5 {[%emt 0:11:36]} 18. exd6 {[%emt 0:07:53]} Qxd6 {[%emt 0:00:37]} 19. Be5 {[%emt 0:01:17]} Bxe5 {[%emt 0:00:33]} 20. Nxe5 {[%emt 0:00:36]} Qb8 {[%emt 0:00:24]} 21. Rab1 {[%emt 0:15:01]} Nf6 {[%emt 0:00:51]} 22. Rfe1 {[%emt 0:00:47]} Ba8 {[%emt 0:02:16]} 23. Re3 {[%emt 0:03:40]} Rfd8 {[%emt 0:18:48]} 24. f5 {[%emt 0:00:50]} Rd6 {[%emt 0:00:40]} 25. Qe2 {[%emt 0:05:37]} Rd4 {[%emt 0:06:09]} 26. Nxf7 {[%emt 0:01:23]} Qb6 {[%emt 0:02:40]} 27. fxg6 {[%emt 0:00:25]} hxg6 {[%emt 0:00:29]} 28. Ng5 {[%emt 0:00:49]} Rcd8 {[%emt 0:00:57]} 29. Re1 {[%emt 0:01:01]} Nh5 {[%emt 0:01:29]} 30. Nf3 {[%emt 0:00:42]} Bxf3 {[%emt 0:00:18]} 31. Qxf3 {[%emt 0:00:06]} Rf4 {[%emt 0:00:05]} 32. Nd5 {[%emt 0:00:22]} Rxf3 {[%emt 0:05:44]} 33. Nxb6 {[%emt 0:00:01]} Rxe3 {[%emt 0:00:06]} 34. Rxe3 {[%emt 0:00:02]} Rd2 {[%emt 0:00:06]} 35. Nxc4 {[%emt 0:01:19]} Rxc2 {[%emt 0:00:03]} 36. Re4 {[%emt 0:00:33]} Kf8 {[%emt 0:04:39]} 37. b4 {[%emt 0:00:20]} g5 {[%emt 0:00:24]} 38. Rg4 {[%emt 0:01:02]} Nf6 {[%emt 0:02:14]} 39. Rd4 {[%emt 0:00:05]} Nh5 {[%emt 0:00:08]} 40. Ne3 {[%emt 0:00:57]} Re2 {[%emt 0:00:30]} 41. Rd3 {[%emt 0:00:23]} e5 {[%emt 0:01:07]} 42. Rb3 {[%emt 0:00:08]} Nf4 {[%emt 0:01:13]} 43. a4 {[%emt 0:00:13]} Ke7 {[%emt 0:11:52]} 44. b5 {[%emt 0:00:45]} axb5 {[%emt 0:00:02]} 45. axb5 {[%emt 0:00:05]} Kd7 {[%emt 0:00:04]} 46. b6 {[%emt 0:01:19]} Kc8 {[%emt 0:00:02]} 47. b7+ {[%emt 0:00:19]} Kb8 {[%emt 0:00:02]} 48. Kh2 {[%emt 0:00:44]} Ne6 {[%emt 0:00:22]} 49. Rb6 {[%emt 0:00:40]} Nd8 {[%emt 0:03:55]} 50. Nc4 {[%emt 0:00:23]} Re4 {[%emt 0:02:28]} 51. Na5 {[%emt 0:00:05]} Rd4 {[%emt 0:02:29]} 52. Ra6 {[%emt 0:00:29]} Kc7 {[%emt 0:00:08]} 53. Rg6 {[%emt 0:01:06]} Ra4 {[%emt 0:01:00]} 54. Rg7+ {[%emt 0:00:18]} Kb8 {[%emt 0:00:01]} 55. Rg8 {[%emt 0:00:33]} Rxa5 {[%emt 0:00:06]} 56. Rxd8+ {[%emt 0:00:04]} Kxb7 {[%emt 0:00:00]} 57. Rg8 {[%emt 0:00:43]} Kc6 {[%emt 0:00:27]} 58. Rxg5 {[%emt 0:00:06]} Kd5 {[%emt 0:00:07]} 59. h4 {[%emt 0:00:37]} Ke4 {[%emt 0:00:46]} 60. Kg3 {[%emt 0:00:23]} Kd4 {[%emt 0:01:08]} 61. h5 {[%emt 0:00:13]} Ra3+ {[%emt 0:00:00]} 62. Kh4 {[%emt 0:00:09]} e4 {[%emt 0:00:06]} 63. Rg8 {[%emt 0:01:17]} e3 {[%emt 0:00:06]} 64. Rd8+ {[%emt 0:00:50]} Kc3 {[%emt 0:00:23]} 65. Re8 {[%emt 0:00:29]} Kd2 {[%emt 0:00:02]} 66. h6 {[%emt 0:00:47]} e2 {[%emt 0:00:01]} 67. h7 {[%emt 0:00:37]} Re3 {[%emt 0:01:03]} 68. Rxe3 {[%emt 0:00:11]} Kxe3 {[%emt 0:00:03]} 69. h8=Q {[%emt 0:00:05]} e1=Q+ {[%emt 0:00:03]} 70. Kg4 {[%emt 0:00:30]} Qd1+ {[%emt 0:00:02]} 1/2-1/2

[Event "Bijnor Open 2024"]
[Site "Bijnor"]
[Date "2024.03.20"]
[Round "8.4"]
[White "Dutta, Joydeep"]
[Black "Sai Agni Jeevitesh, J."]
[Result "1/2-1/2"]
[ECO "E11"]
[WhiteElo "2041"]
[BlackElo "2285"]
[Annotator "TA"]
[PlyCount "157"]
[EventDate "2024.03.17"]
[EventCountry "IND"]
[SourceTitle "playchess.com"]
[Source "ChessBase"]
[SourceQuality "1"]
[TimeControl "5400+30"]

{[%evp 65,157,-129,25,-14,0,0,13,-22,0,-2,0,0,0,0,0,-18,0,-35,-32,-56,-22,-121,-102,-141,-144,-125,-42,-262,-95,-86,-43,-44,-44,-86,-43,-318,-20,-125,-8,-49,0,0,0,0,0,-13,0,0,0,-16,0,-15,-8,-18,0,0,0,0,0,-13,-5,-38,0,-17,0,-45,-27,-333,-46,-36,87,87,94,95,99,88,87,86,84,87,100,48,48,48,48,45,48,48,48,48,61,68,69,19]} 1. d4 {[%emt 0:00:16]} Nf6 {[%emt 0:00:28]} 2. c4 {[%emt 0:00:22]} e6 {[%emt 0:00:06]} 3. g3 {[%emt 0:00:21]} d5 {[%emt 0:00:12]} 4. Nf3 {[%emt 0:00:15]} Bb4+ {[%emt 0:00:09]} 5. Bd2 {[%emt 0:00:09]} a5 {[%emt 0:00:18]} 6. a3 {[%emt 0:01:09]} Be7 {[%emt 0:01:03]} 7. Qc2 {[%emt 0:00:39]} O-O {[%emt 0:00:53]} 8. Bg2 {[%emt 0:00:06]} c6 {[%emt 0:00:49]} 9. O-O {[%emt 0:00:54]} Nbd7 {[%emt 0:00:24]} 10. Bg5 {[%emt 0:02:38] E11: Damenindisch (Bogoljubow-Variante).} a4 $146 {[%emt 0:06:05]} ({Predecessor:} 10... b6 11. Nbd2 Ba6 12. Rac1 Rc8 13. Rfd1 h6 14. Bxf6 Nxf6 15. e4 Qd7 16. e5 Nh7 17. c5 Qb7 {0-1 Erigaisi,A (2689)-Duda,J (2750) FTX Road to Miami Prelim 2022 (9)}) 11. Nbd2 {[%emt 0:02:11]} h6 {[%emt 0:03:01]} 12. Bxf6 {[%emt 0:00:48]} Nxf6 {[%emt 0:00:08]} 13. Rfd1 {[%emt 0:06:54]} Qa5 {[%emt 0:01:49]} 14. Rac1 {[%emt 0:01:59]} Rd8 {[%emt 0:01:17]} 15. e3 {[%emt 0:01:09]} Bd7 {[%emt 0:01:06]} 16. Qc3 {[%emt 0:09:30]} Qa7 {[%emt 0:02:31]} 17. Ne5 {[%emt 0:11:46]} Be8 {[%emt 0:00:36]} 18. Qc2 {[%emt 0:04:29]} Rac8 {[%emt 0:02:05]} 19. cxd5 {[%emt 0:04:59]} exd5 {[%emt 0:01:02]} 20. Nb1 {[%emt 0:08:06]} Bd6 {[%emt 0:00:31]} 21. Bh3 {[%emt 0:02:33]} Rc7 {[%emt 0:01:29]} 22. Nc3 {[%emt 0:02:04]} Ra8 {[%emt 0:05:32]} 23. Qe2 {[%emt 0:04:40]} Re7 {[%emt 0:00:39]} 24. Nd3 {[%emt 0:03:01]} Bd7 {[%emt 0:00:36]} 25. Bxd7 {[%emt 0:03:01]} Nxd7 {[%emt 0:00:09]} 26. Qf3 {[%emt 0:01:05]} Rae8 {[%emt 0:01:05]} 27. Rc2 {[%emt 0:02:28]} Nb6 {[%emt 0:02:31]} 28. Ne1 {[%emt 0:09:24]} Re6 {[%emt 0:03:46]} 29. Ng2 {[%emt 0:04:10]} Qa5 {[%emt 0:02:38]} 30. Qe2 {[%emt 0:02:31]} Nc4 {[%emt 0:01:24]} 31. Rcc1 {[%emt 0:00:12]} b5 {[%emt 0:00:30]} 32. Qc2 {[%emt 0:00:37]} f5 {[%emt 0:07:15]} 33. h4 {[%emt 0:03:02]} h5 $2 {[%emt 0:01:38]} (33... Qa7 $17 {Weiss muss nun ...Qf7 beachten.} 34. Nb1 Rf6) 34. Ra1 {[%emt 0:01:37]} g6 {[%emt 0:00:34]} 35. Ne2 {[%emt 0:00:50]} Kg7 {[%emt 0:01:47]} 36. Nc3 {[%emt 0:03:04]} Rb8 {[%emt 0:00:56]} 37. Ra2 {[%emt 0:00:56]} Ree8 {[%emt 0:01:47]} 38. Raa1 {[%emt 0:00:11]} Qc7 {[%emt 0:01:15]} 39. Rd3 {[%emt 0:01:38]} Rb7 {[%emt 0:00:26]} 40. Rdd1 {[%emt 0:00:18]} Reb8 {[%emt 0:00:31]} 41. Ra2 {[%emt 0:00:41]} Qe7 {[%emt 0:00:37]} 42. Rf1 {[%emt 0:01:18]} Qf6 {[%emt 0:02:06]} 43. Rd1 {[%emt 0:00:52]} (43. Ne2 $11) 43... Kh8 $17 {[%emt 0:00:55]} 44. Qe2 {[%emt 0:00:32]} Rg8 {[%emt 0:00:53]} 45. Qf3 {[%emt 0:00:28]} Qe6 {[%emt 0:01:37]} (45... g5 $17 46. hxg5 Qxg5) 46. Qe2 $2 {[%emt 0:00:35]} ({Vorzuziehen ist} 46. Nf4 $15 Bxf4 47. Qxf4) 46... Re7 $2 {[%emt 0:01:59]} (46... g5 $1 $19 {[%cal Rg5h4] und Schwarz behält klar die Oberhand. Droht stark ...gxh4.} 47. hxg5 Rxg5) 47. Qf3 $17 {[%emt 0:00:16]} Reg7 {[%emt 0:01:10]} 48. Kf1 {[%emt 0:00:51]} Qf7 {[%emt 0:01:52]} ({Auf keinen Fall} 48... g5 49. hxg5 Rxg5 50. Ne2 $17) (48... Qe8 {scheint wilder zu sein.} 49. Nf4 Re7 50. Ke2 Bc7) 49. Kg1 {[%emt 0:00:29]} Qb7 {[%emt 0:02:30]} 50. Qe2 $2 {[%emt 0:00:49][%mdl 8192]} (50. Ne2 $15) 50... Ra8 $2 {[%emt 0:02:24]} ({Günstiger ist} 50... g5 $1 $19 {[%cal Rg5h4]} 51. Raa1 gxh4 52. Nxh4 Qf7) 51. Rda1 {[%emt 0:00:16]} (51. Kh2 $11) 51... Qb8 {[%emt 0:01:07]} ({Besser ist} 51... g5 $1 $17 {Droht ...Qf7 und aus.} 52. Qxh5+ Rh7) 52. Rd1 {[%emt 0:00:24]} Rga7 {[%emt 0:00:53]} (52... Raa7 $15) 53. Qc2 $11 {[%emt 0:00:54]} Kg7 {[%emt 0:02:28]} 54. Rda1 {[%emt 0:00:30]} Rb7 {[%emt 0:00:32]} 55. Qe2 {[%emt 0:00:24]} Bc7 {[%emt 0:00:56]} 56. Qc2 {[%emt 0:00:36]} Qe8 {[%emt 0:00:26]} 57. Qe2 {[%emt 0:00:32]} Ba5 {[%emt 0:01:17]} 58. Nf4 {[%emt 0:00:58]} Re7 {[%emt 0:00:21]} 59. Ng2 {[%emt 0:00:26]} Qd7 {[%emt 0:01:20]} 60. Qd3 {[%emt 0:00:27]} Bc7 {[%emt 0:00:33]} 61. Ne2 {[%emt 0:01:19]} Re4 {[%emt 0:01:00]} 62. Nc3 {[%emt 0:00:15]} Rg4 {[%emt 0:01:02]} 63. Ne2 {[%emt 0:00:33]} Re4 {[%emt 0:00:36]} 64. Nc3 {[%emt 0:02:03]} Re7 {[%emt 0:00:11]} 65. Rd1 {[%emt 0:00:00]} Rae8 {[%emt 0:00:38]} 66. Rc1 $2 {[%emt 0:00:00][%mdl 8192] [#]} (66. Ne2 $11 {und Weiss steht sicher.}) 66... Qd6 $2 {[%emt 0:02:25]} (66... Bxg3 $1 $19 67. Rb1 (67. fxg3 $2 {geht unter.} Rxe3 68. Qf1 Rxg3 $19) 67... Bxf2+ 68. Kxf2 Qd6) 67. Ne2 $15 {[%emt 0:00:00]} b4 {[%emt 0:01:58]} (67... Qf6 $15) 68. axb4 $16 {[%emt 0:00:00]} Qxb4 {[%emt 0:00:03]} 69. Qc2 {[%emt 0:00:24]} Rb8 {[%emt 0:00:44]} 70. Rxa4 {[%emt 0:00:49]} Qxb2 {[%emt 0:00:09]} 71. Ra2 {[%emt 0:00:43]} Qxc2 {[%emt 0:00:13]} 72. Rcxc2 {[%emt 0:00:20]} Rb6 {[%emt 0:01:14]} 73. Ra7 {[%emt 0:01:04]} (73. Ngf4 $16) 73... Bd6 $14 {[%emt 0:00:19]} 74. Rxe7+ {[%emt 0:00:23]} Bxe7 {[%emt 0:00:01]} 75. Ngf4 {[%emt 0:00:15]} Kf6 {[%emt 0:00:51]} 76. Ra2 {[%emt 0:00:19]} Bd6 {[%emt 0:00:25]} 77. Kg2 {[%emt 0:00:28]} Ba3 {[%emt 0:01:12]} 78. Nd3 {[%emt 0:00:21]} Rb3 {[%emt 0:00:23] [#]} 79. Ne5 {[%emt 0:02:24]} (79. Nef4 $1 $14) 1/2-1/2

[Event "Bijnor Open 2024"]
[Site "Bijnor"]
[Date "2024.03.20"]
[Round "8.5"]
[White "Sharma, Harish"]
[Black "Balkishan, A.."]
[Result "0-1"]
[ECO "B44"]
[WhiteElo "1926"]
[BlackElo "2108"]
[Annotator "RC"]
[PlyCount "86"]
[EventDate "2024.03.17"]
[EventCountry "IND"]
[SourceTitle "playchess.com"]
[Source "ChessBase"]
[SourceQuality "1"]
[TimeControl "5400+30"]

1. e4 {[%emt 0:03:44]} c5 {[%emt 0:00:14]} 2. Nf3 {[%emt 0:00:09]} e6 {[%emt 0:00:03]} 3. d4 {[%emt 0:00:33]} cxd4 {[%emt 0:00:06]} 4. Nxd4 {[%emt 0:00:22]} Nc6 {[%emt 0:00:02]} 5. Nb5 {[%emt 0:00:28]} d6 {[%emt 0:00:23]} 6. c4 {[%emt 0:01:06]} Nf6 {[%emt 0:01:08]} 7. Bg5 {[%emt 0:02:11]} Be7 {[%emt 0:02:21]} 8. f3 {[%emt 0:00:48]} a6 {[%emt 0:02:01]} 9. N5c3 {[%emt 0:02:08]} O-O {[%emt 0:05:33]} 10. Be3 {[%emt 0:02:10]} d5 {[%emt 0:04:22]} 11. cxd5 {[%emt 0:03:48]} exd5 {[%emt 0:00:07]} 12. exd5 {[%emt 0:06:19]} Nb4 {[%emt 0:00:32]} 13. Be2 {[%emt 0:00:43]} Bf5 {[%emt 0:02:15]} 14. Na3 {[%emt 0:00:18]} Nbxd5 {[%emt 0:00:58]} 15. Bd4 {[%emt 0:02:50]} Nxc3 {[%emt 0:07:44]} 16. Bxc3 {[%emt 0:00:19]} Nd5 {[%emt 0:07:04]} 17. Bd4 {[%emt 0:11:06]} Nf4 {[%emt 0:05:57]} 18. Kf2 {[%emt 0:02:01]} Bxa3 {[%emt 0:00:52]} 19. bxa3 {[%emt 0:00:29]} Nd3+ {[%emt 0:00:12]} 20. Bxd3 {[%emt 0:08:49]} Qxd4+ {[%emt 0:00:43]} 21. Kg3 {[%emt 0:00:22]} Bxd3 {[%emt 0:00:46]} 22. Qb3 {[%emt 0:00:37]} Bc4 {[%emt 0:01:49]} 23. Qxb7 {[%emt 0:00:55]} Rab8 {[%emt 0:00:06]} 24. Qe7 {[%emt 0:02:34]} Rb6 {[%emt 0:00:59]} 25. h4 {[%emt 0:02:30]} Rg6+ {[%emt 0:00:04]} 26. Kh2 {[%emt 0:00:25]} Qf2 {[%emt 0:00:51]} 27. Rhg1 {[%emt 0:00:30]} f6 {[%emt 0:00:27]} 28. Qe4 {[%emt 0:00:09]} Qg3+ {[%emt 0:01:42]} 29. Kh1 {[%emt 0:01:05]} Bd3 {[%emt 0:00:40]} 30. Qe6+ {[%emt 0:00:25]} Kh8 {[%emt 0:00:04]} 31. Qe1 {[%emt 0:00:14]} Qxe1 {[%emt 0:01:24]} 32. Rgxe1 {[%emt 0:00:15]} f5 {[%emt 0:00:19]} 33. Rad1 {[%emt 0:00:11]} Bc4 {[%emt 0:00:23]} 34. Re7 {[%emt 0:00:18]} h6 {[%emt 0:02:15]} 35. Rd4 {[%emt 0:00:26]} Bf1 {[%emt 0:00:45]} 36. Rd2 {[%emt 0:00:16]} Rc8 {[%emt 0:00:36]} 37. Kg1 {[%emt 0:00:48]} Bb5 {[%emt 0:01:07]} 38. Rf7 {[%emt 0:00:32]} Rc1+ {[%emt 0:02:17]} 39. Kh2 {[%emt 0:00:18]} Rf6 {[%emt 0:00:09]} 40. Ra7 {[%emt 0:01:19]} Kh7 {[%emt 0:00:38]} 41. h5 {[%emt 0:00:28]} Be8 {[%emt 0:02:13]} 42. Rd8 {[%emt 0:00:30]} Bxh5 {[%emt 0:00:06]} 43. Rda8 {[%emt 0:08:47]} Rc2 {[%emt 0:00:34]} 0-1